[Event "Titled Tuesday Blitz February 07 Late 2023"]
[White "Dudzinski, Pawel"]
[Black "Diaz Perez, Michel Alejandro"]
[WhiteFideId "1117890"]
[BlackFideId "3517179"]
[WhiteElo "2186"]
[BlackElo "2414"]
[Result "1/2-1/2"]
[Round "04"]
[TimeControl "180+2"]
[Date "2023.02.07"]
[WhiteClock "0:00:04"]
[BlackClock "0:00:06"]

1. e4 {[%clk 0:03:00]}  c5 {[%clk 0:02:58]} 2. c4 {[%clk 0:03:00]}  Nc6 {[%clk 0:02:57]} 3. Nc3 {[%clk 0:03:00]}  g6 {[%clk 0:02:57]} 4. g3 {[%clk 0:03:01]}  Bg7 {[%clk 0:02:58]} 5. Bg2 {[%clk 0:03:01]}  d6 {[%clk 0:02:59]} 6. Rb1 {[%clk 0:03:00]}  h5 {[%clk 0:02:57]} 7. h3 {[%clk 0:03:00]}  e6 {[%clk 0:02:56]} 8. Nge2 {[%clk 0:03:00]}  Nge7 {[%clk 0:02:55]} 9. a3 {[%clk 0:03:00]}  a5 {[%clk 0:02:54]} 10. Nb5 {[%clk 0:02:59]}  e5 {[%clk 0:02:49]} 11. d3 {[%clk 0:02:58]}  O-O {[%clk 0:02:42]} 12. f4 {[%clk 0:02:58]}  h4 {[%clk 0:02:36]} 13. g4 {[%clk 0:02:58]}  exf4 {[%clk 0:02:37]} 14. Bxf4 {[%clk 0:02:57]}  Ne5 {[%clk 0:02:28]} 15. Bg5 {[%clk 0:02:52]}  f5 {[%clk 0:02:02]} 16. exf5 {[%clk 0:02:50]}  gxf5 {[%clk 0:02:01]} 17. Bd5+ {[%clk 0:02:32]}  Kh8 {[%clk 0:01:56]} 18. Kd2 {[%clk 0:02:26]}  Qd7 {[%clk 0:01:30]} 19. Bxe7 {[%clk 0:02:25]}  Qxe7 {[%clk 0:01:31]} 20. g5 {[%clk 0:02:17]}  Qxg5+ {[%clk 0:01:23]} 21. Kc2 {[%clk 0:02:18]}  f4 {[%clk 0:01:22]} 22. Rg1 {[%clk 0:02:16]}  Qf6 {[%clk 0:01:23]} 23. Nec3 {[%clk 0:02:06]}  Bf5 {[%clk 0:01:20]} 24. Ne4 {[%clk 0:01:56]}  Bxe4 {[%clk 0:01:19]} 25. Bxe4 {[%clk 0:01:55]}  f3 {[%clk 0:01:16]} 26. Nc7 {[%clk 0:01:50]}  Rad8 {[%clk 0:00:57]} 27. Nd5 {[%clk 0:01:49]}  Qh6 {[%clk 0:00:54]} 28. Ne7 {[%clk 0:01:15]}  a4 {[%clk 0:00:49]} 29. Ng6+ {[%clk 0:00:50]}  Nxg6 {[%clk 0:00:48]} 30. Rxg6 {[%clk 0:00:50]}  Qe3 {[%clk 0:00:48]} 31. Rg4 {[%clk 0:00:34]}  Rf6 {[%clk 0:00:25]} 32. Rxh4+ {[%clk 0:00:22]}  Kg8 {[%clk 0:00:25]} 33. Bd5+ {[%clk 0:00:14]}  Kf8 {[%clk 0:00:25]} 34. Qd2 {[%clk 0:00:13]}  Re8 {[%clk 0:00:26]} 35. Be4 {[%clk 0:00:10]}  Qxd2+ {[%clk 0:00:22]} 36. Kxd2 {[%clk 0:00:11]}  f2 {[%clk 0:00:23]} 37. Ke2 {[%clk 0:00:10]}  Rf7 {[%clk 0:00:19]} 38. Rf1 {[%clk 0:00:10]}  Bxb2 {[%clk 0:00:19]} 39. Rxf2 {[%clk 0:00:09]}  Rxf2+ {[%clk 0:00:20]} 40. Kxf2 {[%clk 0:00:10]}  Re7 {[%clk 0:00:20]} 41. Ke2 {[%clk 0:00:05]}  Kg7 {[%clk 0:00:20]} 42. Rh7+ {[%clk 0:00:05]}  Kf6 {[%clk 0:00:20]} 43. Rxe7 {[%clk 0:00:06]}  Kxe7 {[%clk 0:00:21]} 44. Bxb7 {[%clk 0:00:06]}  Bxa3 {[%clk 0:00:21]} 45. Bc6 {[%clk 0:00:07]}  Bc1 {[%clk 0:00:19]} 46. Bxa4 {[%clk 0:00:08]}  Kf6 {[%clk 0:00:19]} 47. Kf3 {[%clk 0:00:08]}  Ke5 {[%clk 0:00:18]} 48. Bc6 {[%clk 0:00:07]}  Kf6 {[%clk 0:00:17]} 49. Be4 {[%clk 0:00:07]}  Bg5 {[%clk 0:00:16]} 50. Kg4 {[%clk 0:00:07]}  Bd2 {[%clk 0:00:17]} 51. h4 {[%clk 0:00:06]}  Bc1 {[%clk 0:00:15]} 52. h5 {[%clk 0:00:07]}  Bd2 {[%clk 0:00:15]} 53. Bg6 {[%clk 0:00:07]}  Bc1 {[%clk 0:00:14]} 54. Kf3 {[%clk 0:00:08]}  Ke5 {[%clk 0:00:14]} 55. Kg4 {[%clk 0:00:08]}  Kf6 {[%clk 0:00:14]} 56. Be4 {[%clk 0:00:07]}  Bd2 {[%clk 0:00:13]} 57. Bc6 {[%clk 0:00:07]}  Bc1 {[%clk 0:00:13]} 58. Be8 {[%clk 0:00:08]}  Bd2 {[%clk 0:00:13]} 59. Kf3 {[%clk 0:00:08]}  Ke5 {[%clk 0:00:12]} 60. Ke2 {[%clk 0:00:08]}  Bh6 {[%clk 0:00:12]} 61. Kd1 {[%clk 0:00:08]}  d5 {[%clk 0:00:12]} 62. cxd5 {[%clk 0:00:07]}  Kxd5 {[%clk 0:00:13]} 63. Kc2 {[%clk 0:00:04]}  Kd4 {[%clk 0:00:13]} 64. Bf7 {[%clk 0:00:03]}  Bg5 {[%clk 0:00:12]} 65. Bc4 {[%clk 0:00:04]}  Bh6 {[%clk 0:00:12]} 66. Kb3 {[%clk 0:00:05]}  Ke5 {[%clk 0:00:09]} 67. Ka4 {[%clk 0:00:06]}  Kd6 {[%clk 0:00:09]} 68. Kb5 {[%clk 0:00:06]}  Bg5 {[%clk 0:00:09]} 69. Kb6 {[%clk 0:00:06]}  Bh6 {[%clk 0:00:09]} 70. Kb7 {[%clk 0:00:07]}  Kd7 {[%clk 0:00:09]} 71. Bb5+ {[%clk 0:00:07]}  Kd6 {[%clk 0:00:10]} 72. Kc8 {[%clk 0:00:07]}  Bg5 {[%clk 0:00:11]} 73. Bc4 {[%clk 0:00:06]}  Kc6 {[%clk 0:00:09]} 74. Ba6 {[%clk 0:00:05]}  Kd6 {[%clk 0:00:10]} 75. Bb5 {[%clk 0:00:05]}  Kd5 {[%clk 0:00:08]} 76. Kd7 {[%clk 0:00:05]}  Ke5 {[%clk 0:00:08]} 77. Kc6 {[%clk 0:00:04]}  Be3 {[%clk 0:00:06]} 78. Bc4 {[%clk 0:00:02]}  Kf6 {[%clk 0:00:06]} 79. h6 {[%clk 0:00:02]}  Bxh6 {[%clk 0:00:04]} 80. Kxc5 {[%clk 0:00:02]}  Ke7 {[%clk 0:00:05]} 81. Kc6 {[%clk 0:00:02]}  Kd8 {[%clk 0:00:05]} 82. d4 {[%clk 0:00:03]}  Bf4 {[%clk 0:00:05]} 83. d5 {[%clk 0:00:04]}  Bg3 {[%clk 0:00:06]} 84. d6 {[%clk 0:00:04]}  Bxd6 {[%clk 0:00:06]} 1/2-1/2


[Site "https://www.chess.com"]

[Event "Titled Tuesday Blitz February 07 Late 2023"]
[White "Czernek, Tymon"]
[Black "Ansh M Shah"]
[WhiteFideId "1199510"]
[BlackFideId "25033379"]
[WhiteElo "2314"]
[BlackElo "2171"]
[Result "1-0"]
[Round "04"]
[TimeControl "180+2"]
[Date "2023.02.07"]
[WhiteClock "0:00:14"]
[BlackClock "0:00:16"]

1. e4 {[%clk 0:03:00]}  c6 {[%clk 0:03:00]} 2. d4 {[%clk 0:02:48]}  d5 {[%clk 0:03:01]} 3. f3 {[%clk 0:02:49]}  dxe4 {[%clk 0:03:01]} 4. fxe4 {[%clk 0:02:49]}  e5 {[%clk 0:03:01]} 5. Nf3 {[%clk 0:02:50]}  Bg4 {[%clk 0:03:01]} 6. c3 {[%clk 0:02:48]}  Nf6 {[%clk 0:02:55]} 7. Bc4 {[%clk 0:02:44]}  Nbd7 {[%clk 0:02:53]} 8. O-O {[%clk 0:02:34]}  Bd6 {[%clk 0:02:53]} 9. Bg5 {[%clk 0:02:26]}  O-O {[%clk 0:02:52]} 10. Nbd2 {[%clk 0:02:24]}  b5 {[%clk 0:02:41]} 11. Be2 {[%clk 0:02:18]}  Qb6 {[%clk 0:02:41]} 12. Kh1 {[%clk 0:02:13]}  Bxf3 {[%clk 0:02:38]} 13. Rxf3 {[%clk 0:01:38]}  exd4 {[%clk 0:02:28]} 14. cxd4 {[%clk 0:01:38]}  Qxd4 {[%clk 0:02:27]} 15. Rd3 {[%clk 0:01:38]}  Qc5 {[%clk 0:01:57]} 16. Bxf6 {[%clk 0:01:22]}  Nxf6 {[%clk 0:01:51]} 17. Rc1 {[%clk 0:01:23]}  Qe5 {[%clk 0:01:08]} 18. Nf3 {[%clk 0:01:21]}  Qxb2 {[%clk 0:01:09]} 19. Rc2 {[%clk 0:01:00]}  Qb4 {[%clk 0:01:02]} 20. Rxd6 {[%clk 0:01:00]}  Nxe4 {[%clk 0:01:00]} 21. Rd4 {[%clk 0:01:01]}  Nf2+ {[%clk 0:00:56]} 22. Kg1 {[%clk 0:00:59]}  Nxd1 {[%clk 0:00:56]} 23. Rxb4 {[%clk 0:01:00]}  Ne3 {[%clk 0:00:55]} 24. Rxc6 {[%clk 0:00:58]}  a6 {[%clk 0:00:55]} 25. Kf2 {[%clk 0:00:55]}  Nd5 {[%clk 0:00:54]} 26. Rd4 {[%clk 0:00:55]}  Nf6 {[%clk 0:00:54]} 27. h3 {[%clk 0:00:52]}  h6 {[%clk 0:00:51]} 28. Bd3 {[%clk 0:00:52]}  Rfe8 {[%clk 0:00:43]} 29. Rdd6 {[%clk 0:00:50]}  a5 {[%clk 0:00:38]} 30. g4 {[%clk 0:00:40]}  b4 {[%clk 0:00:37]} 31. Ra6 {[%clk 0:00:34]}  a4 {[%clk 0:00:37]} 32. Rxa8 {[%clk 0:00:29]}  Rxa8 {[%clk 0:00:38]} 33. Rb6 {[%clk 0:00:27]}  b3 {[%clk 0:00:35]} 34. axb3 {[%clk 0:00:26]}  a3 {[%clk 0:00:35]} 35. Bb1 {[%clk 0:00:12]}  a2 {[%clk 0:00:30]} 36. Bxa2 {[%clk 0:00:12]}  Rxa2+ {[%clk 0:00:31]} 37. Kg3 {[%clk 0:00:13]}  Nd5 {[%clk 0:00:27]} 38. Rb8+ {[%clk 0:00:11]}  Kh7 {[%clk 0:00:27]} 39. Ne5 {[%clk 0:00:10]}  f6 {[%clk 0:00:24]} 40. Nd7 {[%clk 0:00:11]}  h5 {[%clk 0:00:17]} 41. gxh5 {[%clk 0:00:10]}  Rb2 {[%clk 0:00:16]} 42. Kh4 {[%clk 0:00:08]}  Ne3 {[%clk 0:00:13]} 43. Nf8+ {[%clk 0:00:08]}  Kh6 {[%clk 0:00:13]} 44. Ne6 {[%clk 0:00:04]}  Kh7 {[%clk 0:00:07]} 45. Nf8+ {[%clk 0:00:05]}  Kh6 {[%clk 0:00:07]} 46. Ng6 {[%clk 0:00:06]}  Nf5+ {[%clk 0:00:02]} 47. Kg4 {[%clk 0:00:06]}  Ne3+ {[%clk 0:00:02]} 48. Kf3 {[%clk 0:00:07]}  Kxh5 {[%clk 0:00:02]} 49. Nf4+ {[%clk 0:00:07]}  Kg5 {[%clk 0:00:02]} 50. Kxe3 {[%clk 0:00:08]}  Rh2 {[%clk 0:00:02]} 51. Ne6+ {[%clk 0:00:08]}  Kf5 {[%clk 0:00:02]} 52. Nxg7+ {[%clk 0:00:07]}  Kg6 {[%clk 0:00:03]} 53. Ne8 {[%clk 0:00:08]}  Rxh3+ {[%clk 0:00:03]} 54. Kd4 {[%clk 0:00:08]}  Rh8 {[%clk 0:00:04]} 55. b4 {[%clk 0:00:08]}  Kf5 {[%clk 0:00:04]} 56. Nd6+ {[%clk 0:00:08]}  Ke6 {[%clk 0:00:05]} 57. Rxh8 {[%clk 0:00:08]}  Kxd6 {[%clk 0:00:06]} 58. Rh6 {[%clk 0:00:09]}  Kc6 {[%clk 0:00:06]} 59. Rxf6+ {[%clk 0:00:09]}  Kb5 {[%clk 0:00:07]} 60. Kd5 {[%clk 0:00:10]}  Kxb4 {[%clk 0:00:08]} 61. Rf4+ {[%clk 0:00:10]}  Kb3 {[%clk 0:00:09]} 62. Kd4 {[%clk 0:00:11]}  Kc2 {[%clk 0:00:10]} 63. Rf3 {[%clk 0:00:11]}  Kd1 {[%clk 0:00:11]} 64. Rh3 {[%clk 0:00:11]}  Ke2 {[%clk 0:00:12]} 65. Ke4 {[%clk 0:00:12]}  Kf2 {[%clk 0:00:13]} 66. Kf4 {[%clk 0:00:12]}  Kg2 {[%clk 0:00:14]} 67. Ra3 {[%clk 0:00:12]}  Kf2 {[%clk 0:00:14]} 68. Ra2+ {[%clk 0:00:13]}  Ke1 {[%clk 0:00:15]} 69. Ke3 {[%clk 0:00:14]}  Kd1 {[%clk 0:00:16]} 70. Rh2 {[%clk 0:00:14]}  Kc1 {[%clk 0:00:16]} 71. Kd3 {[%clk 0:00:14]} 1-0


[Site "https://www.chess.com"]

[Event "Titled Tuesday Blitz February 07 Late 2023"]
[White "Sielecki, Christof"]
[Black "Forgacs, Attila Jr."]
[WhiteFideId "4620437"]
[BlackFideId "773654"]
[WhiteElo "2419"]
[BlackElo "2264"]
[Result "1-0"]
[Round "04"]
[TimeControl "180+2"]
[Date "2023.02.07"]
[WhiteClock "0:00:06"]
[BlackClock "0:00:01"]

1. e4 {[%clk 0:03:00]}  e5 {[%clk 0:02:57]} 2. Nf3 {[%clk 0:03:00]}  Nc6 {[%clk 0:02:57]} 3. Bb5 {[%clk 0:03:00]}  a6 {[%clk 0:02:57]} 4. Ba4 {[%clk 0:03:00]}  Nf6 {[%clk 0:02:57]} 5. d3 {[%clk 0:03:01]}  d6 {[%clk 0:02:56]} 6. c3 {[%clk 0:03:00]}  g6 {[%clk 0:02:56]} 7. O-O {[%clk 0:03:00]}  Bg7 {[%clk 0:02:56]} 8. Nbd2 {[%clk 0:03:00]}  O-O {[%clk 0:02:56]} 9. Re1 {[%clk 0:03:01]}  b5 {[%clk 0:02:54]} 10. Bc2 {[%clk 0:03:00]}  Nb8 {[%clk 0:02:54]} 11. Nf1 {[%clk 0:02:57]}  c5 {[%clk 0:02:54]} 12. Ng3 {[%clk 0:02:53]}  h6 {[%clk 0:02:49]} 13. a4 {[%clk 0:02:52]}  Bb7 {[%clk 0:02:45]} 14. h3 {[%clk 0:02:48]}  Nbd7 {[%clk 0:02:44]} 15. b4 {[%clk 0:02:25]}  cxb4 {[%clk 0:02:42]} 16. cxb4 {[%clk 0:02:25]}  d5 {[%clk 0:02:40]} 17. a5 {[%clk 0:02:18]}  Rc8 {[%clk 0:02:28]} 18. Bb3 {[%clk 0:02:17]}  d4 {[%clk 0:02:16]} 19. Bd2 {[%clk 0:02:10]}  Qe7 {[%clk 0:02:10]} 20. Rf1 {[%clk 0:01:49]}  Rc7 {[%clk 0:02:08]} 21. Nh2 {[%clk 0:01:37]}  Nh7 {[%clk 0:01:43]} 22. Kh1 {[%clk 0:01:30]}  Kh8 {[%clk 0:01:41]} 23. f4 {[%clk 0:01:16]}  f5 {[%clk 0:01:39]} 24. Qe2 {[%clk 0:01:00]}  fxe4 {[%clk 0:01:35]} 25. Nxe4 {[%clk 0:00:58]}  exf4 {[%clk 0:01:24]} 26. Bxf4 {[%clk 0:00:53]}  Ne5 {[%clk 0:01:24]} 27. Bxe5 {[%clk 0:00:49]}  Bxe5 {[%clk 0:01:18]} 28. Rxf8+ {[%clk 0:00:48]}  Qxf8 {[%clk 0:01:18]} 29. Rf1 {[%clk 0:00:49]}  Qe8 {[%clk 0:01:06]} 30. Ng4 {[%clk 0:00:45]}  Kg7 {[%clk 0:01:00]} 31. Nc5 {[%clk 0:00:38]}  Re7 {[%clk 0:00:42]} 32. Ne6+ {[%clk 0:00:31]}  Rxe6 {[%clk 0:00:42]} 33. Bxe6 {[%clk 0:00:32]}  Qxe6 {[%clk 0:00:27]} 34. Qxe5+ {[%clk 0:00:30]}  Qxe5 {[%clk 0:00:28]} 35. Nxe5 {[%clk 0:00:31]}  Nf6 {[%clk 0:00:28]} 36. Rc1 {[%clk 0:00:31]}  Nd5 {[%clk 0:00:25]} 37. Nf3 {[%clk 0:00:22]}  Kf6 {[%clk 0:00:21]} 38. Nxd4 {[%clk 0:00:22]}  Nxb4 {[%clk 0:00:21]} 39. Rc7 {[%clk 0:00:22]}  Bd5 {[%clk 0:00:17]} 40. Kg1 {[%clk 0:00:16]}  Nxd3 {[%clk 0:00:14]} 41. Ra7 {[%clk 0:00:16]}  Nc5 {[%clk 0:00:11]} 42. Kf2 {[%clk 0:00:16]}  b4 {[%clk 0:00:09]} 43. Rc7 {[%clk 0:00:11]}  Ne4+ {[%clk 0:00:05]} 44. Ke3 {[%clk 0:00:10]}  b3 {[%clk 0:00:05]} 45. Nxb3 {[%clk 0:00:09]}  Bxb3 {[%clk 0:00:04]} 46. Kxe4 {[%clk 0:00:09]}  Ba4 {[%clk 0:00:04]} 47. Kf4 {[%clk 0:00:08]}  g5+ {[%clk 0:00:03]} 48. Ke3 {[%clk 0:00:07]}  Bb5 {[%clk 0:00:03]} 49. Rc5 {[%clk 0:00:06]}  Bf1 {[%clk 0:00:02]} 50. Kf2 {[%clk 0:00:05]}  Bd3 {[%clk 0:00:02]} 51. g3 {[%clk 0:00:06]}  Bb1 {[%clk 0:00:01]} 52. h4 {[%clk 0:00:06]}  Bd3 {[%clk 0:00:01]} 53. Ke3 {[%clk 0:00:06]}  Bf1 {[%clk 0:00:01]} 54. hxg5+ {[%clk 0:00:07]}  hxg5 {[%clk 0:00:01]} 55. Kd4 {[%clk 0:00:05]}  Kg6 {[%clk 0:00:01]} 56. Ke3 {[%clk 0:00:06]}  Kh5 {[%clk 0:00:01]} 57. Kf3 {[%clk 0:00:06]} 1-0


[Site "https://www.chess.com"]

[Event "Titled Tuesday Blitz February 07 Late 2023"]
[White "Antonova, Nadezhda"]
[Black "Ortega Amarelle, Mariano"]
[WhiteFideId "14700182"]
[BlackFideId "3504301"]
[WhiteElo "1945"]
[BlackElo "2472"]
[Result "0-1"]
[Round "04"]
[TimeControl "180+2"]
[Date "2023.02.07"]
[WhiteClock "0:00:41"]
[BlackClock "0:00:56"]

1. Nf3 {[%clk 0:02:59]}  d5 {[%clk 0:02:56]} 2. b3 {[%clk 0:02:58]}  e6 {[%clk 0:02:56]} 3. Bb2 {[%clk 0:02:58]}  Nf6 {[%clk 0:02:57]} 4. g3 {[%clk 0:02:58]}  Be7 {[%clk 0:02:57]} 5. Bg2 {[%clk 0:02:58]}  O-O {[%clk 0:02:58]} 6. O-O {[%clk 0:02:59]}  b6 {[%clk 0:02:59]} 7. c4 {[%clk 0:02:53]}  Bb7 {[%clk 0:02:59]} 8. cxd5 {[%clk 0:02:52]}  exd5 {[%clk 0:02:58]} 9. d4 {[%clk 0:02:48]}  Nbd7 {[%clk 0:02:58]} 10. Nc3 {[%clk 0:02:47]}  a6 {[%clk 0:02:58]} 11. Rc1 {[%clk 0:02:45]}  Bd6 {[%clk 0:02:58]} 12. e3 {[%clk 0:02:40]}  Qe7 {[%clk 0:02:57]} 13. Re1 {[%clk 0:02:38]}  Rfe8 {[%clk 0:02:56]} 14. Re2 {[%clk 0:02:32]}  h6 {[%clk 0:02:42]} 15. Rec2 {[%clk 0:02:32]}  Rad8 {[%clk 0:02:31]} 16. Nh4 {[%clk 0:02:25]}  Qe6 {[%clk 0:02:14]} 17. Qf3 {[%clk 0:02:11]}  g6 {[%clk 0:02:02]} 18. Qd1 {[%clk 0:01:56]}  Ne4 {[%clk 0:01:39]} 19. Nf3 {[%clk 0:01:32]}  f5 {[%clk 0:01:37]} 20. Ne2 {[%clk 0:01:23]}  c5 {[%clk 0:01:12]} 21. dxc5 {[%clk 0:01:19]}  bxc5 {[%clk 0:01:12]} 22. Nf4 {[%clk 0:01:14]}  Qf7 {[%clk 0:01:11]} 23. Nxg6 {[%clk 0:00:45]}  Qxg6 {[%clk 0:01:06]} 24. Nh4 {[%clk 0:00:46]}  Qf7 {[%clk 0:00:57]} 25. Qh5 {[%clk 0:00:41]}  Qxh5 {[%clk 0:00:56]} 0-1


[Site "https://www.chess.com"]

[Event "Titled Tuesday Blitz February 07 Late 2023"]
[White "Bellissimo, Joseph F."]
[Black "Nilsen, Tobias Lang"]
[WhiteFideId "2609843"]
[BlackFideId "1521624"]
[WhiteElo "2203"]
[BlackElo "2247"]
[Result "0-1"]
[Round "04"]
[TimeControl "180+2"]
[Date "2023.02.07"]
[WhiteClock "0:00:15"]
[BlackClock "0:00:17"]

1. e4 {[%clk 0:03:00]}  e6 {[%clk 0:02:28]} 2. d4 {[%clk 0:02:45]}  d5 {[%clk 0:02:28]} 3. Nd2 {[%clk 0:02:44]}  a6 {[%clk 0:02:27]} 4. e5 {[%clk 0:02:40]}  c5 {[%clk 0:02:27]} 5. c3 {[%clk 0:02:39]}  Nc6 {[%clk 0:02:28]} 6. Ngf3 {[%clk 0:02:36]}  Nh6 {[%clk 0:02:28]} 7. Bd3 {[%clk 0:02:31]}  cxd4 {[%clk 0:02:26]} 8. cxd4 {[%clk 0:02:30]}  Bd7 {[%clk 0:02:26]} 9. O-O {[%clk 0:02:18]}  Be7 {[%clk 0:02:22]} 10. a3 {[%clk 0:02:17]}  O-O {[%clk 0:02:21]} 11. Re1 {[%clk 0:01:53]}  Nf5 {[%clk 0:02:21]} 12. Nf1 {[%clk 0:01:48]}  Ncxd4 {[%clk 0:01:58]} 13. Nxd4 {[%clk 0:01:42]}  Nxd4 {[%clk 0:01:59]} 14. Bxh7+ {[%clk 0:01:40]}  Kxh7 {[%clk 0:02:00]} 15. Qxd4 {[%clk 0:01:40]}  Rc8 {[%clk 0:01:59]} 16. b3 {[%clk 0:01:32]}  Bc5 {[%clk 0:01:50]} 17. Qg4 {[%clk 0:01:30]}  f6 {[%clk 0:01:44]} 18. Be3 {[%clk 0:01:09]}  fxe5 {[%clk 0:01:38]} 19. Bxc5 {[%clk 0:01:08]}  Rxc5 {[%clk 0:01:38]} 20. Rxe5 {[%clk 0:01:08]}  Qf6 {[%clk 0:01:37]} 21. Rh5+ {[%clk 0:00:51]}  Kg8 {[%clk 0:01:35]} 22. Ra2 {[%clk 0:00:51]}  Rc1 {[%clk 0:01:29]} 23. a4 {[%clk 0:00:51]}  Ra1 {[%clk 0:00:25]} 24. Re2 {[%clk 0:00:42]}  b5 {[%clk 0:00:16]} 25. Qh3 {[%clk 0:00:39]}  bxa4 {[%clk 0:00:12]} 26. Rh8+ {[%clk 0:00:38]}  Kf7 {[%clk 0:00:12]} 27. Re3 {[%clk 0:00:39]}  Bb5 {[%clk 0:00:11]} 28. Qh5+ {[%clk 0:00:26]}  Ke7 {[%clk 0:00:10]} 29. h3 {[%clk 0:00:24]}  Rxf1+ {[%clk 0:00:10]} 30. Kh2 {[%clk 0:00:25]}  Rxh8 {[%clk 0:00:07]} 31. Qxh8 {[%clk 0:00:25]}  Qf4+ {[%clk 0:00:06]} 32. Rg3 {[%clk 0:00:24]}  Qe5 {[%clk 0:00:04]} 33. f4 {[%clk 0:00:21]}  Qxf4 {[%clk 0:00:03]} 34. Qxg7+ {[%clk 0:00:20]}  Qf7 {[%clk 0:00:04]} 35. Qg5+ {[%clk 0:00:20]}  Qf6 {[%clk 0:00:04]} 36. Qe3 {[%clk 0:00:18]}  Qf4 {[%clk 0:00:03]} 37. Qc5+ {[%clk 0:00:19]}  Kf6 {[%clk 0:00:03]} 38. Qf8+ {[%clk 0:00:18]}  Ke5 {[%clk 0:00:03]} 39. Qb8+ {[%clk 0:00:17]}  Ke4 {[%clk 0:00:04]} 40. Qb6 {[%clk 0:00:18]}  Rh1+ {[%clk 0:00:03]} 41. Kxh1 {[%clk 0:00:18]}  Qxg3 {[%clk 0:00:04]} 42. Qc5 {[%clk 0:00:15]}  Qe1+ {[%clk 0:00:04]} 43. Kh2 {[%clk 0:00:15]}  Qe3 {[%clk 0:00:04]} 44. Qc7 {[%clk 0:00:13]}  Qf4+ {[%clk 0:00:04]} 45. Qxf4+ {[%clk 0:00:14]}  Kxf4 {[%clk 0:00:05]} 46. bxa4 {[%clk 0:00:14]}  Bxa4 {[%clk 0:00:06]} 47. g4 {[%clk 0:00:14]}  Be8 {[%clk 0:00:07]} 48. Kg2 {[%clk 0:00:14]}  Bg6 {[%clk 0:00:07]} 49. Kf2 {[%clk 0:00:15]}  d4 {[%clk 0:00:07]} 50. Ke2 {[%clk 0:00:15]}  d3+ {[%clk 0:00:08]} 51. Kd2 {[%clk 0:00:16]}  e5 {[%clk 0:00:09]} 52. h4 {[%clk 0:00:16]}  e4 {[%clk 0:00:09]} 53. h5 {[%clk 0:00:17]}  e3+ {[%clk 0:00:10]} 54. Ke1 {[%clk 0:00:15]}  Be4 {[%clk 0:00:11]} 55. h6 {[%clk 0:00:15]}  d2+ {[%clk 0:00:11]} 56. Kd1 {[%clk 0:00:14]}  Bf3+ {[%clk 0:00:11]} 57. Kc2 {[%clk 0:00:15]}  d1=Q+ {[%clk 0:00:12]} 58. Kb2 {[%clk 0:00:16]}  Qd4+ {[%clk 0:00:12]} 59. Kb3 {[%clk 0:00:16]}  Qh8 {[%clk 0:00:13]} 60. g5 {[%clk 0:00:15]}  Kxg5 {[%clk 0:00:14]} 61. h7 {[%clk 0:00:15]}  Qxh7 {[%clk 0:00:14]} 62. Ka3 {[%clk 0:00:16]}  e2 {[%clk 0:00:15]} 63. Ka4 {[%clk 0:00:17]}  Qb7 {[%clk 0:00:15]} 64. Ka3 {[%clk 0:00:15]}  Bd5 {[%clk 0:00:15]} 65. Ka4 {[%clk 0:00:15]}  Qb6 {[%clk 0:00:16]} 66. Ka3 {[%clk 0:00:15]}  Qb3# {[%clk 0:00:17]} 0-1


[Site "https://www.chess.com"]

[Event "Titled Tuesday Blitz February 07 Late 2023"]
[White "Tanenbaum, Zachary"]
[Black "Harish, Neeraj"]
[WhiteFideId "2060850"]
[BlackFideId "30958130"]
[WhiteElo "2261"]
[BlackElo "2232"]
[Result "0-1"]
[Round "04"]
[TimeControl "180+2"]
[Date "2023.02.07"]
[WhiteClock "0:01:39"]
[BlackClock "0:00:15"]

1. e4 {[%clk 0:03:00]}  c5 {[%clk 0:02:58]} 2. Nf3 {[%clk 0:03:00]}  Nc6 {[%clk 0:02:58]} 3. Nc3 {[%clk 0:03:00]}  e5 {[%clk 0:02:58]} 4. Bc4 {[%clk 0:02:59]}  Be7 {[%clk 0:02:58]} 5. d3 {[%clk 0:02:59]}  Nf6 {[%clk 0:02:57]} 6. Ng5 {[%clk 0:02:59]}  O-O {[%clk 0:02:58]} 7. h4 {[%clk 0:03:00]}  h6 {[%clk 0:02:57]} 8. Nd5 {[%clk 0:03:00]}  Nxd5 {[%clk 0:02:53]} 9. Bxd5 {[%clk 0:03:01]}  hxg5 {[%clk 0:02:50]} 10. hxg5 {[%clk 0:03:02]}  g6 {[%clk 0:02:50]} 11. Qg4 {[%clk 0:03:02]}  Kg7 {[%clk 0:02:34]} 12. Rh7+ {[%clk 0:03:02]}  Kxh7 {[%clk 0:02:31]} 13. Qh4+ {[%clk 0:03:02]}  Kg8 {[%clk 0:02:22]} 14. Qh6 {[%clk 0:02:37]}  Bf6 {[%clk 0:01:05]} 15. gxf6 {[%clk 0:02:37]}  Qxf6 {[%clk 0:01:06]} 16. Bg5 {[%clk 0:02:37]}  Qg7 {[%clk 0:01:04]} 17. Qh4 {[%clk 0:02:37]}  Qh7 {[%clk 0:00:39]} 18. Qxh7+ {[%clk 0:02:05]}  Kxh7 {[%clk 0:00:38]} 19. Bf6 {[%clk 0:02:06]}  g5 {[%clk 0:00:29]} 20. Bxg5 {[%clk 0:02:01]}  Kg6 {[%clk 0:00:26]} 21. Be3 {[%clk 0:02:02]}  d6 {[%clk 0:00:24]} 22. f3 {[%clk 0:02:00]}  Be6 {[%clk 0:00:23]} 23. c4 {[%clk 0:01:54]}  Bxd5 {[%clk 0:00:23]} 24. cxd5 {[%clk 0:01:55]}  Nd4 {[%clk 0:00:24]} 25. Kd2 {[%clk 0:01:53]}  Rh8 {[%clk 0:00:23]} 26. b4 {[%clk 0:01:52]}  Rh2 {[%clk 0:00:21]} 27. bxc5 {[%clk 0:01:50]}  Rxg2+ {[%clk 0:00:21]} 28. Kd1 {[%clk 0:01:48]}  dxc5 {[%clk 0:00:20]} 29. Rb1 {[%clk 0:01:45]}  Rh8 {[%clk 0:00:20]} 30. Bd2 {[%clk 0:01:39]}  Rh1+ {[%clk 0:00:18]} 31. Be1 {[%clk 0:01:39]}  Nxf3 {[%clk 0:00:15]} 0-1


[Site "https://www.chess.com"]